fUST/lending_fUST_20251217
["ID","MTS","AMOUNT","RATE_DAILY","PERIOD"]
[398828597,1765917123667,-1018.85947252,0.00041,30]
[398828598,1765917123712,-23307.77478,0.00042,9]
[398828599,1765917123755,-1017.0,0.00042,30]
[398828600,1765917123800,-1299.66,0.00044,30]
[398828601,1765917123845,-20000.0,0.00047,14]
[398828602,1765917123890,-19327.82153682,0.00048,6]
[398828603,1765917123935,-150.0,0.00048489,120]
[398828604,1765917123982,-152.0,0.00048912,30]
[398828605,1765917124030,-152.0,0.00048912,30]
[398828606,1765917124076,-152.0,0.00048912,30]
[398828607,1765917124121,-282.38608169,0.00048912,30]
[398828608,1765917124165,-349.84062504,0.00048999,14]
[398828609,1765917124212,-314.8421497,0.00049,15]
[398828610,1765917124259,-199.0,0.0005,7]
[398828611,1765917124308,-536.53787939,0.0005,10]
[398828612,1765917124356,-204.0,0.00052489,120]
[398828613,1765917124402,-500.0,0.0005315,60]
[398828614,1765917124447,-500.0,0.00053899,120]
[398828615,1765917124493,-500.0,0.00054246,60]
[398828616,1765917124538,-581.38,0.00054447,120]
[398828617,1765917124583,-231.0,0.00054489,120]
[398828618,1765917124627,-5000.0,0.00054521,30]
[398828619,1765917124671,-1890.77995008,0.00054659,120]
[398828620,1765917124713,-150.0,0.000547,120]
[398828621,1765917124757,-317.78,0.0005479,10]
[398828622,1765917125652,15968.97,0.00032877,10]
[398828623,1765917125768,150.0,0.00027397,5]
[398828624,1765917125815,650.0,0.00030137,5]
[398828625,1765917125863,250.0,0.00027945,5]
[398828626,1765917125911,350.0,0.00028493,5]
[398828627,1765917125966,550.0,0.00029589,5]
[398828628,1765917126020,450.0,0.00029041,5]
[398828629,1765917126076,609.15349209,0.00030685,5]
[398828630,1765917126138,2000.0,0.00054793,15]
[398828631,1765917126187,2000.0,0.00054793,15]
[398828632,1765917126237,2000.0,0.00054447,15]
[398828633,1765917126292,2000.0,0.00053987,15]
[398828634,1765917126349,2000.0,0.00053899,15]
[398828635,1765917126400,2000.0,0.00053897,15]
[398828636,1765917126449,2000.0,0.00052054,15]
[398828637,1765917126497,2000.0,0.00052054,15]
[398828638,1765917126545,2000.0,0.00052053,15]
[398828639,1765917126592,2000.0,0.00052053,15]
[398828640,1765917126638,2000.0,0.00052053,15]
[398828641,1765917126688,2000.0,0.00051231,15]
[398828642,1765917126741,2000.0,0.00050409,15]
[398828643,1765917126795,2000.0,0.00050409,15]
[398828644,1765917126862,2000.0,0.00049999,15]
[398828645,1765917126912,2000.0,0.00049889,15]
[398828646,1765917126967,2000.0,0.00049862,15]
[398828647,1765917127022,2000.0,0.00049588,15]
[398828648,1765917127076,2000.0,0.00049314,15]
[398828649,1765917127128,2000.0,0.00048766,15]
[398828650,1765917127180,2000.0,0.00048766,15]
[398828651,1765917127236,2000.0,0.00048218,15]
[398828652,1765917127293,2000.0,0.00047944,15]
[398828653,1765917127363,2000.0,0.0004767,15]
[398828654,1765917127445,2000.0,0.00047122,15]
[398828655,1765917127511,2000.0,0.000463,15]
[398828656,1765917127575,2000.0,0.00046026,15]
[398828657,1765917127641,2000.0,0.00045478,15]
[398828658,1765917127704,13307.47,0.00032877,10]
[398828659,1765917127756,2000.0,0.00045478,15]
[398828660,1765917127814,1000.0,0.000539,120]
[398828661,1765917127869,2000.0,0.0004493,15]
[398828662,1765917127932,1000.0,0.000539,120]
[398828663,1765917127990,2000.0,0.00044656,15]
[398828664,1765917128047,1000.0,0.000539,120]
[398828665,1765917128106,2000.0,0.00043834,15]
[398828666,1765917128165,1000.0,0.000539,120]
[398828667,1765917128218,2000.0,0.00043834,15]
[398828668,1765917128274,1000.0,0.000539,120]
[398828669,1765917128328,2000.0,0.00043012,15]
[398828670,1765917128395,1000.0,0.000539,120]
[398828671,1765917128455,2000.0,0.0004219,15]
[398828672,1765917128514,1000.0,0.000539,120]
[398828673,1765917128577,1000.0,0.000539,120]
[398828674,1765917128629,2000.0,0.0004219,15]
[398828675,1765917128687,2000.0,0.00041642,15]
[398828676,1765917128740,185.552,0.000539,120]
[398828677,1765917128796,2000.0,0.00040546,15]
[398828678,1765917128857,2000.0,0.00039725,15]
[398828679,1765917128917,2000.0,0.00038903,15]
[398828680,1765917128978,2000.0,0.00038081,15]
[398828681,1765917129039,2000.0,0.00038054,15]
[398828682,1765917129096,2000.0,0.00037549,7]
[398828683,1765917129157,2000.0,0.00037549,10]
[398828684,1765917129213,2000.0,0.00037549,12]
[398828685,1765917129273,2000.0,0.00037549,14]
[398828686,1765917129345,2000.0,0.00037549,5]
[398828687,1765917129402,2000.0,0.00037549,15]
[398828688,1765917129458,2000.0,0.00037099,15]
[398828689,1765917129526,2000.0,0.00036437,15]
[398828690,1765917129583,2000.0,0.00035615,15]
[398828691,1765917129651,2000.0,0.00034191,15]
[398828692,1765917129981,2000.0,0.00032574,15]
[398828693,1765917130038,2000.0,0.00021792,15]
[398828694,1765917130216,475.0,0.000539,120]
[398828695,1765917130271,475.0,0.000539,120]
[398828696,1765917130307,150.0,7.229e-05,2]
[398828697,1765917130358,475.0,0.000539,120]
[398828698,1765917130394,150.0,7.573e-05,2]
[398828699,1765917130447,475.0,0.000539,120]
[398828700,1765917130500,475.0,0.000539,120]
[398828701,1765917130532,150.0,7.917e-05,2]
[398828702,1765917130584,5799.0,0.0004055,20]
[398828703,1765917130636,475.0,0.000539,120]
[398828704,1765917130700,3179.60760763,0.00037362,40]
[398828705,1765917130735,150.0,8.262e-05,2]
[398828706,1765917130790,475.0,0.000539,120]
[398828707,1765917130850,475.0,0.000539,120]
[398828708,1765917130886,150.0,8.606e-05,2]
[398828709,1765917130946,475.0,0.000539,120]
[398828710,1765917131009,475.0,0.000539,120]
[398828711,1765917131080,475.0,0.000539,120]
[398828712,1765917131146,475.0,0.000539,120]
[398828713,1765917131229,475.0,0.000539,120]
[398828714,1765917131288,11089.56,0.00032877,10]
[398828715,1765917131352,475.0,0.000539,120]
[398828716,1765917131421,475.0,0.000539,120]
[398828717,1765917131484,475.0,0.000539,120]
[398828718,1765917131542,475.0,0.000539,120]
[398828719,1765917131596,475.0,0.000539,120]
[398828720,1765917131646,475.0,0.000539,120]
[398828721,1765917131698,475.0,0.000539,120]
[398828722,1765917131747,475.0,0.000539,120]
[398828723,1765917131794,475.0,0.000539,120]
[398828724,1765917131844,475.0,0.000539,120]
[398828725,1765917131894,475.0,0.000539,120]
[398828726,1765917131950,475.0,0.000539,120]
[398828727,1765917132001,475.0,0.000539,120]
[398828728,1765917132051,475.0,0.000539,120]
[398828729,1765917132105,475.0,0.000539,120]
[398828730,1765917132155,475.0,0.000539,120]
[398828731,1765917132204,475.0,0.000539,120]
[398828732,1765917132253,475.0,0.000539,120]
[398828733,1765917132303,475.0,0.000539,120]
[398828734,1765917132355,475.0,0.000539,120]
[398828735,1765917132407,475.0,0.000539,120]
[398828736,1765917132454,475.0,0.000539,120]
[398828737,1765917132512,475.0,0.000539,120]
[398828738,1765917132558,475.0,0.000539,120]
[398828739,1765917132606,5799.0,0.0004555,20]
[398828740,1765917132652,475.0,0.000539,120]
[398828741,1765917132700,475.0,0.000539,120]
[398828742,1765917132744,475.0,0.000539,120]
[398828743,1765917132789,475.0,0.000539,120]
[398828744,1765917132835,475.0,0.000539,120]
[398828745,1765917132880,475.0,0.000539,120]
[398828746,1765917132927,475.0,0.000539,120]
[398828747,1765917132973,475.0,0.000539,120]
[398828748,1765917133021,475.0,0.000539,120]
[398828749,1765917133071,475.0,0.000539,120]
[398828750,1765917133123,475.0,0.000539,120]
[398828751,1765917133172,475.0,0.000539,120]
[398828752,1765917133224,475.0,0.000539,120]
[398828753,1765917133273,475.0,0.000539,120]
[398828754,1765917133326,475.0,0.000539,120]
[398828755,1765917133376,475.0,0.000539,120]
[398828756,1765917133429,475.0,0.000539,120]
[398828757,1765917133479,475.0,0.000539,120]
[398828758,1765917133527,475.0,0.000539,120]
[398828759,1765917133574,475.0,0.000539,120]
[398828760,1765917133626,475.0,0.000539,120]
[398828761,1765917133674,9241.3,0.00032877,10]
[398828762,1765917133718,475.0,0.000539,120]
[398828763,1765917133764,475.0,0.000539,120]
[398828764,1765917133808,475.0,0.000539,120]
[398828765,1765917133853,475.0,0.000539,120]
[398828766,1765917133900,475.0,0.000539,120]
[398828767,1765917134163,475.0,0.000539,120]
[398828768,1765917134216,475.0,0.000539,120]
[398828769,1765917134264,475.0,0.000539,120]
[398828770,1765917134327,475.0,0.000539,120]
[398828771,1765917134377,475.0,0.000539,120]
[398828772,1765917134427,475.0,0.000539,120]
[398828773,1765917134474,475.0,0.000539,120]
[398828774,1765917134532,475.0,0.000539,120]
[398828775,1765917134587,475.0,0.000539,120]
[398828776,1765917134634,475.0,0.000539,120]
[398828777,1765917134680,475.0,0.000539,120]
[398828778,1765917134727,475.0,0.000539,120]
[398828779,1765917134775,475.0,0.000539,120]
[398828780,1765917134820,475.0,0.000539,120]
[398828781,1765917134871,475.0,0.000539,120]
[398828782,1765917134923,475.0,0.000539,120]
[398828783,1765917134989,475.0,0.000539,120]
[398828784,1765917135037,433.951,0.000539,120]
[398828785,1765917135576,7701.09,0.00032877,10]
[398828786,1765917135706,14219.0,0.000341,120]
[398828787,1765917135912,6417.57,0.00032877,10]
[398828788,1765917136157,-605.38483015,0.00010012,2]
[398828789,1765917136169,-4394.61516985,0.00010012,2]
[398828790,1765917136180,-172.68961735,0.00010114,2]
[398828791,1765917136188,-7788.99521281,0.0001022,2]
[398828792,1765917136199,-28216.59583408,0.0001022,2]
[398828793,1765917136210,-14737.41067775,0.0001022,2]
[398828794,1765917136509,5347.98,0.00032877,10]
[398828795,1765917136760,-340.33332483,0.0001022,2]
[398828796,1765917136771,-4785.32908402,0.0001022,2]
[398828797,1765917136922,-15982.82402967,0.0001022,2]
[398828798,1765917136979,-1447.92572103,0.0001022,2]
[398828799,1765917136991,-226362.34938379,0.0001022,2]
[398828800,1765917137001,-304.127,0.0001022,2]
[398828801,1765917137016,-37427.57979903,0.0001022,2]
[398828802,1765917137027,-1119.50542007,0.0001022,2]
[398828803,1765917137309,150.0,8.914e-05,2]
[398828804,1765917137322,-10313.11202671,0.0001022,2]
[398828805,1765917137335,-4419.45,0.0001022,2]
[398828806,1765917137368,150.0,9.256e-05,2]
[398828807,1765917137380,-369.75391155,0.0001022,2]
[398828808,1765917137391,-3445.98744845,0.0001022,2]
[398828809,1765917137402,-1318.70184405,0.0001022,2]
[398828810,1765917137415,-40341.48285685,0.0001022,2]
[398828811,1765917137446,150.0,9.599e-05,2]
[398828812,1765917137534,-25826.29,0.0001022,2]
[398828813,1765917137546,-2583.70658444,0.0001022,2]
[398828814,1765917137558,-6791.94900133,0.0001022,2]
[398828815,1765917137574,-702.23462972,0.0001022,2]
[398828816,1765917137585,-6929.59063587,0.0001022,2]
[398828817,1765917137748,4456.65,0.00032877,10]
[398828818,1765917138172,3713.87,0.00032877,10]
[398828819,1765917139756,500.0,0.00054793,120]
[398828820,1765917139814,500.0,0.00054793,120]
[398828821,1765917139872,272.18900505,0.00054793,120]
[398828822,1765917139945,3094.89,0.00032877,10]
[398828823,1765917140316,1001.1,0.00054795,5]
[398828824,1765917140366,5772.87,0.00032877,10]
[398828825,1765917140683,1001.0,0.00054793,30]
[398828826,1765917140730,1720.1,0.00054795,5]
[398828827,1765917140788,500.0,0.0005315,60]
[398828828,1765917140885,150.0,7.401e-05,2]
[398828829,1765917141081,4810.73,0.00032877,10]
[398828830,1765917141264,11514.0,0.00033,120]
[398828831,1765917141326,316.91654502,0.0005,5]
[398828832,1765917141476,151.0,0.00054347,30]
[398828833,1765917141528,151.0,0.00054347,30]
[398828834,1765917141588,151.0,0.00054347,30]
[398828835,1765917141652,4008.94,0.00032877,10]
[398828836,1765917141696,151.0,0.00054347,30]
[398828837,1765917141747,151.0,0.00054347,30]
[398828838,1765917141800,151.0,0.00054347,30]
[398828839,1765917142185,151.0,0.00054347,30]
[398828840,1765917142703,282.0,0.00054347,30]
[398828841,1765917143290,151.0,0.00054347,30]
[398828842,1765917143553,151.0,0.00054347,30]
[398828843,1765917143814,151.0,0.00054347,30]
[398828844,1765917144118,151.0,0.00054347,30]
[398828845,1765917144515,151.0,0.00054347,30]
[398828846,1765917144773,151.0,0.00054347,30]
[398828847,1765917145056,251.51257598,0.00054347,30]
[398829022,1765917146863,153.0,0.0004506,30]
[398829187,1765917148621,153.0,0.0004506,30]
[398829325,1765917150015,153.0,0.0004506,30]
[398829554,1765917152671,150.0,0.00054794,5]
[398829596,1765917153058,150.0,0.00054794,5]
[398829602,1765917153106,150.0,0.00054794,5]
[398829618,1765917153254,150.0,0.00054794,5]
[398829638,1765917153462,200.0,0.00054794,5]
[398829676,1765917153804,150.0,0.00054794,5]
[398829743,1765917154445,150.0,0.00054794,5]
[398829752,1765917154511,150.0,0.00054794,5]
[398829774,1765917154800,150.0,0.00054794,5]
[398829780,1765917154891,150.0,0.00054794,5]
[398829790,1765917155018,150.0,0.00054794,5]
[398829795,1765917155095,200.0,0.00054794,5]
[398829819,1765917155430,202.04274382,0.00054794,5]
[398829824,1765917155478,200.0,0.00054794,5]
[398829829,1765917155531,150.0,0.00054794,5]
[398829850,1765917155823,150.00232428,0.00054794,5]
[398829855,1765917155887,150.0,0.00054794,5]
[398829859,1765917155935,150.0,0.00054794,5]
[398829889,1765917156335,150.19755209,0.00054794,5]
[398829894,1765917156386,150.0,0.00054794,5]
[398829898,1765917156433,200.0,0.00054794,5]
[398829903,1765917156491,151.0,0.00048,90]
[398829907,1765917156537,150.0,0.00054794,5]
[398829914,1765917156616,150.0,0.00054794,5]
[398829918,1765917156666,150.0,0.00054794,5]
[398829923,1765917156723,150.0,0.00054794,5]
[398829927,1765917156769,150.0,0.00054794,5]
[398829932,1765917156825,150.0,0.00054794,5]
[398829942,1765917156948,150.0,0.00054794,5]
[398829947,1765917157000,150.0,0.00054794,5]
[398829951,1765917157050,200.0,0.00054794,5]
[398829957,1765917157100,200.79426071,0.00054794,5]
[398829963,1765917157166,150.0,0.00054794,5]
[398829967,1765917157213,200.0,0.00054794,5]
[398829981,1765917157390,201.32427849,0.00054794,5]
[398829986,1765917157445,150.0,0.00054794,5]
[398830003,1765917157654,150.0,0.00054794,5]
[398830013,1765917157768,150.0,0.00054794,5]
[398830033,1765917157990,150.0,0.00054794,5]
[398830038,1765917158041,150.0,0.00054794,5]
[398830048,1765917158221,200.0,0.00054794,5]
[398830049,1765917158522,150.0,0.00054794,5]
[398830050,1765917158619,150.0,0.00054794,5]
[398830051,1765917158712,150.0,0.00054794,5]
[398830052,1765917158812,150.0,0.00054794,5]
[398830053,1765917158939,150.0,0.00054794,5]
[398830054,1765917158991,150.0,0.00054794,5]
[398830055,1765917159045,200.0,0.00054794,5]
[398830056,1765917159095,151.32367851,0.00054794,5]
[398830057,1765917159148,500.0,0.00054794,5]
[398830058,1765917159199,150.0,0.00054794,5]
[398830059,1765917159250,150.0,0.00054794,5]
[398830060,1765917159305,501.92107014,0.00054794,5]
[398830061,1765917159670,200.0,0.00054794,5]
[398830077,1765917168243,3340.78,0.00032877,10]
[398830081,1765917175547,2222.22,0.00022,7]
[398830082,1765917175872,2222.22,0.000269,7]
[398830083,1765917176176,2222.22,0.000344,7]
[398830084,1765917176495,2222.22,0.000381,7]
[398830085,1765917178651,649.83,0.000242,14]
[398830086,1765917178950,649.83,0.000301,14]
[398830087,1765917179254,649.83,0.00036,30]
[398830088,1765917179922,649.83,0.000462,30]
[398830089,1765917181345,2783.98,0.00032877,10]
[398830090,1765917186205,414.0,0.00054793,30]
[398830091,1765917186265,244.17825768,0.00054793,30]
[398830092,1765917186801,160.12855638,0.00054793,120]
[398830093,1765917187238,150.0,0.00054794,5]
[398830094,1765917188036,202.82994718,0.00054794,5]
[398830095,1765917188094,150.0,0.00054794,5]
[398830096,1765917188186,150.0,0.00054794,5]
[398830097,1765917188238,150.0,0.00054794,5]
[398830098,1765917188293,250.0,0.00054793,30]
[398830099,1765917188348,250.0,0.00054793,30]
[398830100,1765917188397,150.0,0.00054794,5]
[398830101,1765917188448,150.0,0.00054794,5]
[398830102,1765917188510,201.56120465,0.00054794,5]
[398830103,1765917188567,206.06333995,0.00054794,5]
[398830104,1765917188622,152.0,0.00054794,5]
[398830105,1765917188674,250.0,0.00054793,120]
[398830106,1765917188733,250.0,0.00054793,120]
[398830107,1765917188929,201.11546971,0.00054794,5]
[398830108,1765917188993,150.0,0.00054794,5]
[398830109,1765917189194,150.0,0.00054794,5]
[398830110,1765917189244,150.0,0.00054794,5]
[398830111,1765917189294,250.0,0.00054792,30]
[398830112,1765917189348,250.0,0.00054792,30]
[398830113,1765917189463,150.0,0.00054794,5]
[398830114,1765917189671,150.0,0.00054794,5]
[398830115,1765917189724,150.0,0.00054794,5]
[398830116,1765917189865,250.0,0.00054795,5]
[398830117,1765917189913,500.0,0.00054794,5]
[398830118,1765917189962,150.0,0.00054794,5]
[398830119,1765917190014,151.09076016,0.00054794,5]
[398830120,1765917190062,250.0,0.00054792,120]
[398830121,1765917190120,500.0,0.00054794,5]
[398830122,1765917190173,529.69504851,0.00054794,5]
[398830123,1765917190222,150.0,0.00054794,5]
[398830124,1765917190315,150.0,0.00054794,5]
[398830125,1765917190363,513.22955624,0.00054794,5]
[398830126,1765917190482,255.64955147,0.00054795,5]
[398830127,1765917190547,150.0,0.00054794,5]
[398830128,1765917190605,250.0,0.00054447,60]
[398830129,1765917190772,210.62231059,0.00054794,5]
[398830130,1765917190821,150.0,0.00054794,5]
[398830131,1765917190870,150.0,0.00054794,5]
[398830132,1765917191001,150.0,0.00054794,5]
[398830133,1765917191052,206.46636722,0.00054794,5]
[398830134,1765917191106,151.85150379,0.00054794,5]
[398830135,1765917191362,150.0,0.00054794,5]
[398830136,1765917191542,150.0,0.00054794,5]
[398830137,1765917191685,250.0,0.00053987,80]
[398830138,1765917191754,150.0,0.00054794,5]
[398830139,1765917191859,150.0,0.00054794,5]
[398830140,1765917191909,150.0,0.00054794,5]
[398830141,1765917191971,150.0,0.00054794,5]
[398830142,1765917192035,150.0,0.00054794,5]
[398830143,1765917192097,150.0,0.00054794,5]
[398830144,1765917192148,150.0,0.00054794,5]
[398830145,1765917192207,150.0,0.00054794,5]
[398830146,1765917192274,150.0,0.00054794,5]
[398830147,1765917192348,150.0,0.00054794,5]
[398830148,1765917192396,201.49499767,0.00054794,5]
[398830149,1765917192450,250.0,0.00054795,5]
[398830150,1765917192500,150.0,0.00054794,5]
[398830151,1765917192560,250.0,0.00054794,5]
[398830152,1765917192606,150.0,0.00054794,5]
[398830153,1765917192651,150.0,0.00054794,5]
[398830154,1765917192771,156.93260328,0.00054794,5]
[398830155,1765917192832,150.0,0.00054794,5]
[398830156,1765917192940,250.0,0.00054795,5]
[398830157,1765917193055,150.0,0.00054794,5]
[398830158,1765917193236,150.0,0.00054794,5]
[398830159,1765917193289,150.0,0.00054794,5]
[398830160,1765917193338,150.0,0.00054794,5]
[398830161,1765917193443,150.0,0.00054794,5]
[398830162,1765917193494,150.0,0.00054794,5]
[398830163,1765917193542,150.0,0.00054794,5]
[398830164,1765917193591,250.0,0.00054795,5]
[398830165,1765917193643,150.0,0.00054794,5]
[398830166,1765917193956,155.89295001,0.00054794,5]
[398830167,1765917194007,150.0,0.00054794,5]
[398830168,1765917194058,250.0,0.00054794,5]
[398830169,1765917194112,150.0,0.00054794,5]
[398830170,1765917194176,250.0,0.00054795,5]
[398830171,1765917194415,153.51279631,0.00054794,5]
[398830172,1765917194757,250.0,0.00054795,5]
[398830173,1765917194909,2319.99,0.00032877,10]
[398830175,1765917196380,30387.34,0.00036,14]
[398830176,1765917196650,150.0,0.00054794,5]
[398830177,1765917196696,30387.34,0.000494,14]
[398830178,1765917196859,150.0,0.00054794,5]
[398830179,1765917197049,477.24110637,0.00054793,30]
[398830180,1765917197099,150.0,0.00054794,5]
[398830181,1765917197281,250.0,0.00054794,5]
[398830183,1765917206220,222.737562,0.000249,7]
[398830184,1765917206534,222.737562,0.0003,7]
[398830190,1765917207701,151.0,0.000249,7]
[398830192,1765917207754,222.737562,0.000249,7]
[398830193,1765917208041,222.737562,0.0003,7]
[398830194,1765917208092,151.0,0.0003,7]
[398830196,1765917209200,1933.32,0.00032877,10]
[398830197,1765917209278,222.737562,0.000249,7]
[398830198,1765917209380,151.0,0.000249,7]
[398830199,1765917209579,222.737562,0.0003,7]
[398830200,1765917209629,550.299976,0.000249,7]
[398830201,1765917209704,151.0,0.0003,7]
[398830203,1765917209878,550.299976,0.0003,7]
[398830204,1765917210494,1340.049415,0.000249,7]
[398830205,1765917210802,1340.049415,0.0003,7]
[398830206,1765917210974,222.737562,0.000249,7]
[398830207,1765917211069,151.0,0.000249,7]
[398830208,1765917211121,550.299976,0.000249,7]
[398830209,1765917211271,222.737567,0.0003,7]
[398830210,1765917211381,151.0,0.0003,7]
[398830211,1765917211432,550.299976,0.0003,7]
[398830212,1765917212033,1340.049415,0.000249,7]
[398830213,1765917212321,1340.049415,0.0003,7]
[398830214,1765917212593,550.299976,0.000249,7]
[398830215,1765917212899,550.299976,0.0003,7]
[398830217,1765917213742,1340.049415,0.000249,7]
[398830218,1765917214047,1340.049415,0.0003,7]
[398830220,1765917214099,550.299976,0.000249,7]
[398830221,1765917214370,550.299983,0.0003,7]
[398830222,1765917215295,1340.049415,0.000249,7]
[398830223,1765917215598,1340.049406,0.0003,7]
[398830224,1765917217601,151.0,0.000249,7]
[398830225,1765917217917,151.0,0.0003,7]
[398830227,1765917219461,151.0,0.000249,7]
[398830228,1765917219512,151.0,0.0003,7]
[398830229,1765917220526,168.149431,0.000249,7]
[398830407,1765917231714,391.324606,0.000249,7]
[398830414,1765917232015,391.324606,0.0003,7]
[398830428,1765917232620,282.071714,0.000249,7]
[398830436,1765917232913,282.071714,0.0003,7]
[398830443,1765917233222,391.324606,0.000249,7]
[398830450,1765917233515,391.324606,0.0003,7]
[398830463,1765917234059,282.071714,0.000249,7]
[398830471,1765917234400,282.071714,0.0003,7]
[398830478,1765917234701,391.324606,0.000249,7]
[398830480,1765917234996,391.324606,0.0003,7]
[398830490,1765917235540,282.071714,0.000249,7]
[398830497,1765917235825,282.071714,0.0003,7]
[398830507,1765917236174,391.324606,0.000249,7]
[398830515,1765917236491,391.324607,0.0003,7]
[398830528,1765917237022,282.071714,0.000249,7]
[398830535,1765917237293,1611.1,0.00032877,10]
[398830537,1765917237344,282.071715,0.0003,7]
[398830680,1765917244132,639.420701,0.000249,7]
[398830687,1765917244429,639.420701,0.0003,7]
[398830714,1765917245596,639.420701,0.000249,7]
[398830717,1765917245690,219.158362,0.000249,7]
[398830723,1765917245901,639.420701,0.0003,7]
[398830726,1765917245966,219.158362,0.0003,7]
[398830751,1765917247040,639.420701,0.000249,7]
[398830755,1765917247186,219.158362,0.000249,7]
[398830759,1765917247331,639.420701,0.0003,7]
[398830763,1765917247486,219.158362,0.0003,7]
[398830772,1765917247850,1342.59,0.00032877,10]
[398830784,1765917248450,639.420701,0.000249,7]
[398830785,1765917248739,639.420707,0.0003,7]
[398830787,1765917248787,219.158362,0.000249,7]
[398830794,1765917249092,219.158362,0.0003,7]
[398830826,1765917250554,219.158362,0.000249,7]
[398830837,1765917251003,151.0,0.000249,7]
[398830839,1765917251064,230.482853,0.0003,7]
[398830841,1765917251116,219.158365,0.0003,7]
[398830920,1765917255281,1359.252492,0.000249,7]
[398830928,1765917255611,1359.252492,0.0003,7]
[398830932,1765917255699,1000.0,0.00053898,120]
[398830941,1765917256114,1138.032937,0.000249,7]
[398830949,1765917256427,1138.032937,0.0003,7]
[398830958,1765917256768,1359.252492,0.000249,7]
[398830966,1765917257066,1359.252492,0.0003,7]
[398830968,1765917257113,150.0,0.00054794,5]
[398830973,1765917257280,150.0,0.00054794,5]
[398830978,1765917257469,250.0,0.00054794,5]
[398830984,1765917257699,1138.032937,0.000249,7]
[398830991,1765917257998,1138.032937,0.0003,7]
[398830993,1765917258304,1359.252492,0.000249,7]
[398830995,1765917258366,500.0,0.00053151,60]
[398831002,1765917258597,1359.252492,0.0003,7]
[398831008,1765917258867,500.0,0.00054247,60]
[398831015,1765917259111,150.0,0.00054794,5]
[398831017,1765917259161,500.0,0.00054794,5]
[398831019,1765917259217,500.0,0.00054794,5]